bitfinex/quotes_BTCUSD_20251102
["timestamp","ask_amount","ask_price","bid_price","bid_amount"]
[1762075610435,0.06924126,111190.0,111180.0,0.56508667]
[1762075615884,0.04424126,111190.0,111180.0,0.97769488]
[1762075616071,0.04424126,111190.0,111180.0,1.00048488]
[1762075617103,0.06924126,111190.0,111180.0,0.97769488]
[1762075617885,0.04424126,111190.0,111180.0,0.97769488]
[1762075618525,0.03007,111190.0,111180.0,0.97769488]
[1762075619195,0.06861126,111190.0,111180.0,0.20832846]
[1762075619389,0.06861126,111190.0,111180.0,0.97872488]
[1762075621797,0.06861126,111190.0,111180.0,0.20832846]
[1762075622078,0.06861126,111190.0,111180.0,0.97872488]
[1762075622805,0.06861126,111190.0,111180.0,0.97877188]
[1762075626850,0.07705412,111190.0,111180.0,0.97877188]
[1762075628714,0.07705412,111190.0,111180.0,0.95033188]
[1762075633964,0.0770542,111190.0,111180.0,0.95033188]
[1762075634342,0.06288294,111190.0,111180.0,0.96682188]
[1762075635284,0.0770542,111190.0,111180.0,0.95033188]
[1762075637354,0.0770542,111190.0,111180.0,0.56509718]
[1762075640193,0.09116319,111190.0,111180.0,0.56509718]
[1762075644083,0.08272025,111190.0,111180.0,0.56509718]
[1762075644238,0.0911655,111190.0,111180.0,0.56509718]
[1762075644658,0.0911655,111190.0,111180.0,0.59213466]
[1762075646735,0.07705651,111190.0,111180.0,0.59213466]
[1762075648065,0.07705651,111190.0,111180.0,0.20697294]
[1762075650116,0.07705651,111190.0,111180.0,0.59213466]
[1762075661264,0.2569288,111190.0,111180.0,0.59213466]
[1762075661505,0.24275754,111190.0,111180.0,0.59213466]
[1762075661734,0.06288525,111190.0,111180.0,0.59213466]
[1762075661941,0.07705651,111190.0,111180.0,0.59213466]
[1762075663369,0.09116568,111190.0,111180.0,0.59213466]
[1762075665819,0.27103797,111190.0,111180.0,0.59213466]
[1762075666038,0.25686671,111190.0,111180.0,0.59213466]
[1762075666241,0.07699442,111190.0,111180.0,0.59213466]
[1762075666441,0.09116568,111190.0,111180.0,0.59213466]
[1762075666951,0.27103797,111190.0,111180.0,0.59213466]
[1762075667204,0.25686671,111190.0,111180.0,0.59213466]
[1762075667507,0.24275754,111190.0,111180.0,0.59213466]
[1762075668666,0.24275754,111190.0,111180.0,0.56509718]
[1762075669370,0.06288525,111190.0,111180.0,0.56509718]
[1762075669570,0.07705651,111190.0,111180.0,0.56509718]
[1762075669775,0.2569288,111190.0,111180.0,0.56509718]
[1762075669978,0.24275754,111190.0,111180.0,0.56509718]
[1762075670180,0.06288525,111190.0,111180.0,0.56509718]
[1762075670386,0.07705651,111190.0,111180.0,0.56509718]
[1762075675752,0.2569288,111190.0,111180.0,0.56509718]
[1762075675898,0.24275754,111190.0,111180.0,0.56509718]
[1762075676724,0.06288525,111190.0,111180.0,0.56509718]
[1762075676933,0.07705651,111190.0,111180.0,0.56509718]
[1762075678988,0.06288525,111190.0,111180.0,0.56509718]
[1762075681844,0.06288643,111190.0,111180.0,0.56509718]
[1762075689996,0.0769956,111190.0,111180.0,0.56509718]
[1762075691779,0.0769956,111190.0,111180.0,0.59213466]
[1762075694764,0.06288643,111190.0,111180.0,0.59213466]
[1762075695964,0.06288643,111190.0,111180.0,0.59013466]
[1762075698037,0.24275872,111190.0,111180.0,0.59013466]
[1762075698373,0.24275872,111190.0,111180.0,0.56309718]
[1762075699392,0.24275872,111190.0,111180.0,0.56312739]
[1762075700547,0.06288643,111190.0,111180.0,0.56312739]
[1762075702023,0.24275872,111190.0,111180.0,0.56312739]
[1762075702222,0.23431229,111190.0,111180.0,0.56312739]
[1762075702429,0.24275959,111190.0,111180.0,0.56312739]
[1762075704935,0.24275959,111190.0,111180.0,0.59016487]
[1762075709625,0.27906792,111190.0,111180.0,0.59016487]
[1762075709831,0.0628873,111190.0,111180.0,0.59016487]
[1762075710037,0.24275959,111190.0,111180.0,0.59016487]
[1762075711885,0.24275959,111190.0,111180.0,0.20497294]
[1762075712091,0.24275959,111190.0,111180.0,0.59016487]
[1762075713317,0.0628873,111190.0,111180.0,0.59016487]
[1762075713946,0.08708876,111190.0,111180.0,0.59016487]
[1762075714162,0.0628873,111190.0,111180.0,0.59016487]
[1762075714368,0.24275959,111190.0,111180.0,0.59016487]
[1762075720807,0.0628873,111190.0,111180.0,0.59016487]
[1762075721456,0.0628873,111190.0,111180.0,0.20497294]
[1762075721669,0.24275959,111190.0,111180.0,0.59016487]
[1762075722790,0.24275916,111190.0,111180.0,0.59016487]
[1762075723024,0.32958015,111190.0,111180.0,0.59216487]
[1762075723226,0.06288687,111190.0,111180.0,0.59216487]
[1762075726831,0.06288687,111190.0,111180.0,0.60847487]
[1762075727749,0.06288687,111190.0,111180.0,0.59216487]
[1762075729517,0.24275916,111190.0,111180.0,0.59216487]
[1762075730616,0.24275916,111190.0,111180.0,4.7e-05]
[1762075731041,3.82795109,111190.0,111180.0,4.7e-05]
[1762075731242,4.16795109,111190.0,111180.0,4.7e-05]
[1762075731451,4.19498952,111190.0,111180.0,4.7e-05]
[1762075732597,4.19398952,111190.0,111180.0,4.7e-05]
[1762075732805,4.19898952,111190.0,111180.0,4.7e-05]
[1762075733054,4.29180853,111190.0,111180.0,4.7e-05]
[1762075733250,4.28880853,111190.0,111180.0,4.7e-05]
[1762075733735,3.9066166,111190.0,111180.0,4.7e-05]
[1762075735422,0.9066166,111190.0,111180.0,0.17993546]
[1762075735899,0.6369253,111190.0,111180.0,0.17993546]
[1762075736088,0.81679759,111190.0,111180.0,0.17993546]
[1762075736294,0.6369253,111190.0,111180.0,0.56512739]
[1762075736501,0.81679759,111190.0,111180.0,0.56512739]
[1762075736918,0.6369253,111190.0,111180.0,0.56512739]
[1762075737970,0.65103565,111190.0,111180.0,0.56512739]
[1762075738358,0.83090794,111190.0,111180.0,0.56512739]
[1762075738598,0.65103565,111190.0,111180.0,0.56512739]
[1762075738797,0.83090794,111190.0,111180.0,0.56512739]
[1762075739693,0.65103565,111190.0,111180.0,0.56512739]
[1762075739866,0.83090794,111190.0,111180.0,0.56512739]
[1762075740891,0.65103565,111190.0,111180.0,0.56512739]
[1762075741092,0.83090794,111190.0,111180.0,0.56512739]
[1762075741399,0.83089743,111190.0,111180.0,0.56512739]
[1762075741679,0.65102514,111190.0,111180.0,0.56512739]
[1762075742291,0.65102514,111190.0,111180.0,0.95031932]
[1762075742433,0.42665514,111190.0,111180.0,0.97782932]
[1762075742639,0.42665514,111190.0,111180.0,1.00278932]
[1762075742874,0.42665514,111190.0,111180.0,1.00486766]
[1762075743072,0.09145479,111190.0,111180.0,1.00486766]
[1762075743303,0.05967762,111190.0,111180.0,1.00486766]
[1762075743536,0.05667762,111190.0,111180.0,1.00486766]
[1762075743686,0.05767762,111190.0,111180.0,1.00486766]
[1762075743892,0.05767762,111190.0,111180.0,0.2344838]
[1762075744094,0.05767762,111190.0,111180.0,1.02982766]
[1762075744528,0.05267762,111190.0,111180.0,1.02982766]
[1762075744922,0.05367762,111190.0,111180.0,1.02982766]
[1762075746077,0.05367762,111190.0,111180.0,1.00486766]
[1762075746557,0.05367762,111190.0,111180.0,1.02982766]
[1762075747689,0.03703762,111190.0,111180.0,1.02982766]
[1762075747874,0.02286636,111190.0,111180.0,1.02982766]
[1762075759380,0.02286636,111190.0,111180.0,0.64457572]
[1762075763294,0.01043636,111190.0,111180.0,1.02970764]
[1762075763984,0.02454588,111190.0,111180.0,0.64457572]
[1762075766306,0.02454588,111190.0,111180.0,1.02970764]
[1762075767084,0.02454588,111190.0,111180.0,0.64457572]
[1762075767390,0.09021714,111190.0,111180.0,0.59210572]
[1762075767825,0.09021714,111190.0,111180.0,0.2069738]
[1762075768623,0.13762583,111190.0,111180.0,0.2069738]
[1762075769249,0.09021714,111190.0,111180.0,0.2069738]
[1762075772030,0.09021714,111190.0,111180.0,0.59210572]
[1762075773777,0.09021714,111190.0,111180.0,0.2069738]
[1762075774896,0.27008943,111190.0,111180.0,4.7e-05]
[1762075775102,0.24180865,111190.0,111180.0,4.7e-05]
[1762075775501,0.33162766,111190.0,111180.0,4.7e-05]
[1762075776259,0.24180865,111190.0,111180.0,4.7e-05]
[1762075776493,3.27899093,111190.0,111180.0,4.7e-05]
[1762075777029,3.27899915,111190.0,111180.0,4.7e-05]
[1762075777257,3.27899907,111190.0,111180.0,4.7e-05]
[1762075777661,3.27799907,111190.0,111180.0,4.7e-05]
[1762075777812,3.36881808,111190.0,111180.0,4.7e-05]
[1762075779384,3.70881808,111190.0,111180.0,4.7e-05]
[1762075780658,0.70881808,111190.0,111180.0,0.17993546]
[1762075780863,0.70781808,111190.0,111180.0,0.17993546]
[1762075784016,0.70781808,111190.0,111180.0,4.7e-05]
[1762075785832,3.70781808,111190.0,111180.0,4.7e-05]
[1762075786269,4.12099348,111190.0,111180.0,4.7e-05]
[1762075786918,4.11999348,111190.0,111180.0,4.7e-05]
[1762075787120,3.73586156,111190.0,111180.0,4.7e-05]
[1762075794512,4.16219342,111190.0,111180.0,4.7e-05]
[1762075795466,4.16019342,111190.0,111180.0,4.7e-05]
[1762075795889,4.18069342,111190.0,111180.0,4.7e-05]
[1762075799252,4.21317591,111190.0,111180.0,4.7e-05]
[1762075800815,4.27573683,111190.0,111180.0,4.7e-05]
[1762075801018,4.24325434,111190.0,111180.0,4.7e-05]
[1762075802081,4.25736773,111190.0,111180.0,4.7e-05]
[1762075802284,4.35228773,111190.0,111180.0,4.7e-05]
[1762075802490,4.25736773,111190.0,111180.0,4.7e-05]
[1762075803110,4.74735964,111190.0,111180.0,4.7e-05]
[1762075803310,3.96603657,111170.0,111160.0,8.686e-05]
[1762075803520,4.13326431,111170.0,111160.0,8.686e-05]
[1762075803727,4.15745431,111170.0,111160.0,8.686e-05]
[1762075803970,4.52982386,111170.0,111160.0,8.686e-05]
[1762075804180,4.58349161,111170.0,111160.0,8.686e-05]
[1762075804389,4.60775676,111170.0,111160.0,8.686e-05]
[1762075805051,4.59049161,111170.0,111160.0,8.686e-05]
[1762075805256,4.62774609,111170.0,111160.0,8.686e-05]
[1762075805410,4.6077461,111170.0,111160.0,8.686e-05]
[1762075805614,4.61774609,111170.0,111160.0,8.686e-05]
[1762075805822,4.5984916,111170.0,111160.0,8.686e-05]
[1762075806231,4.62273653,111170.0,111160.0,8.686e-05]
[1762075806407,4.59458067,111170.0,111160.0,8.686e-05]
[1762075806878,4.59558067,111170.0,111160.0,0.00708686]
[1762075808221,4.56321112,111170.0,111160.0,0.00708686]
[1762075808635,4.5773262,111170.0,111160.0,0.00708686]
[1762075808847,4.5858262,111170.0,111160.0,0.00708686]
[1762075811364,4.6138513,111170.0,111160.0,0.00708686]
[1762075811634,4.64622085,111170.0,111160.0,0.00708686]
[1762075814116,4.61819575,111170.0,111160.0,0.00708686]
[1762075815311,4.61819575,111170.0,111160.0,1e-08]
[1762075815494,4.6705289,111170.0,111160.0,1e-08]
[1762075816253,4.62197592,111170.0,111160.0,1e-08]
[1762075816464,4.7653889,111170.0,111160.0,1e-08]
[1762075819165,4.75127382,111170.0,111160.0,1e-08]
[1762075819472,5.13754046,111170.0,111160.0,1e-08]
[1762075820252,5.12904046,111170.0,111160.0,1e-08]
[1762075821250,5.12904046,111170.0,111150.0,0.00125003]
[1762075821458,4.93794617,111160.0,111150.0,0.00125003]
[1762075821660,4.53891549,111160.0,111150.0,0.00125003]
[1762075821862,4.47615479,111160.0,111150.0,0.00125003]
[1762075822036,4.09045551,111160.0,111150.0,0.00125003]
[1762075822238,4.47615479,111160.0,111150.0,0.00125003]
[1762075822464,4.4902718,111160.0,111150.0,0.00125003]
[1762075823340,4.4902718,111160.0,111150.0,0.00525003]
[1762075823541,4.58009081,111160.0,111150.0,0.00525003]
[1762075823692,4.58009081,111160.0,111150.0,0.00425003]
[1762075823901,4.58109081,111160.0,111150.0,0.00725003]
[1762075824945,4.11407252,111160.0,111150.0,0.00725003]
[1762075825205,4.07701422,111160.0,111150.0,0.00725003]
[1762075825686,4.33111421,111160.0,111150.0,0.00725003]
[1762075826794,4.32111422,111160.0,111150.0,0.00725003]
[1762075827038,4.33111421,111160.0,111150.0,0.00725003]
[1762075827241,4.42093322,111160.0,111150.0,0.00725003]
[1762075827469,4.45330277,111160.0,111150.0,0.00725003]
[1762075827856,4.83900205,111160.0,111150.0,0.00725003]
[1762075828440,4.81477879,111160.0,111150.0,0.00725003]
[1762075829835,4.86333177,111160.0,111150.0,0.00725003]
[1762075830387,4.85333178,111160.0,111150.0,0.00725003]
[1762075830601,4.86333177,111160.0,111150.0,0.00725003]
[1762075832350,4.83096222,111160.0,111150.0,0.00725003]
[1762075832742,4.82096223,111160.0,111150.0,0.00725003]
[1762075833107,4.83096222,111160.0,111150.0,0.00725003]
[1762075833535,3.92093702,111150.0,111140.0,0.000103]
[1762075833738,4.47145089,111150.0,111140.0,0.000103]
[1762075833866,4.52821098,111150.0,111140.0,0.000103]
[1762075834703,4.52921098,111150.0,111140.0,0.006103]
[1762075835729,4.53771098,111150.0,111140.0,0.006103]
[1762075836639,4.51438523,111150.0,111140.0,0.010103]
[1762075837030,4.52438522,111150.0,111140.0,0.010103]
[1762075838814,4.60912048,111150.0,111140.0,0.010103]
[1762075839266,4.60912048,111150.0,111140.0,0.01032096]
[1762075839419,4.99481976,111150.0,111140.0,0.01032096]
[1762075840104,4.60912048,111150.0,111140.0,0.01032096]
[1762075840523,4.99481976,111150.0,111140.0,0.01032096]
[1762075840730,5.00893742,111150.0,111140.0,0.01032096]
[1762075843031,4.62323814,111150.0,111140.0,0.01032096]
[1762075844907,4.689763,111150.0,111140.0,0.01032096]
[1762075849524,4.64121002,111150.0,111140.0,0.01032096]
[1762075852567,4.27983326,111150.0,111140.0,0.01032096]
[1762075852743,4.66553254,111150.0,111140.0,0.01032096]
[1762075852969,4.51057466,111150.0,111140.0,0.01032096]
[1762075853838,4.12487538,111150.0,111140.0,0.01032096]
[1762075854045,4.11387539,111150.0,111140.0,0.01032096]
[1762075854257,4.08244105,111150.0,111140.0,0.01032096]
[1762075854464,4.06832339,111150.0,111140.0,0.01032096]
[1762075855004,4.06732339,111150.0,111140.0,0.01032096]
[1762075855839,4.54284168,111150.0,111140.0,0.01032096]
[1762075856040,4.1571424,111150.0,111140.0,0.01032096]
[1762075858210,4.16525422,111150.0,111140.0,0.01032096]
[1762075858665,4.15675422,111150.0,111140.0,0.01032096]
[1762075860271,4.5434535,111150.0,111140.0,0.01032096]
[1762075860457,4.60050648,111150.0,111140.0,0.01032096]
[1762075861818,4.56807214,111150.0,111140.0,0.01032096]
[1762075864289,4.60050401,111150.0,111140.0,0.01032096]
[1762075865956,4.56807214,111150.0,111140.0,0.01032096]
[1762075866367,4.60050288,111150.0,111140.0,0.01032096]
[1762075867615,4.96377141,111150.0,111140.0,0.01032096]
[1762075867842,4.57807213,111150.0,111140.0,0.01032096]
[1762075868691,4.96377141,111150.0,111140.0,0.01032096]
[1762075870128,4.99161388,111150.0,111140.0,1e-08]
[1762075870339,5.00573171,111150.0,111140.0,1e-08]
[1762075871386,5.07337679,111150.0,111140.0,1e-08]
[1762075872080,5.58408737,111150.0,111140.0,1e-08]
[1762075872293,5.21410748,111150.0,111140.0,1e-08]
[1762075872505,5.24117106,111150.0,111140.0,1e-08]
[1762075872726,5.24017106,111150.0,111140.0,1e-08]
[1762075872943,5.23917106,111150.0,111140.0,1e-08]
[1762075873164,4.4737725,111150.0,111140.0,1e-08]
[1762075873607,3.96715167,111130.0,111120.0,0.02918821]
[1762075873819,4.15210864,111130.0,111120.0,0.02918821]
[1762075874028,4.08623562,111130.0,111120.0,0.02918821]
[1762075874687,4.4719349,111130.0,111120.0,0.02918821]
[1762075874906,4.4719349,111130.0,111120.0,0.02967117]
[1762075876035,4.4749349,111130.0,111120.0,0.03067117]
[1762075876250,4.56475391,111130.0,111120.0,0.03067117]
[1762075876675,4.56575391,111130.0,111120.0,0.03167117]
[1762075877540,4.5578191,111130.0,111120.0,0.03167117]
[1762075877738,4.57469316,111130.0,111120.0,0.03167117]
[1762075878153,4.99280483,111130.0,111120.0,0.03167117]
[1762075878963,0.3800342,111090.0,111080.0,0.38569928]
[1762075879174,0.4074742,111090.0,111080.0,0.38578616]
[1762075879662,0.4300342,111090.0,111080.0,0.38578616]
[1762075880063,0.4300342,111090.0,111080.0,0.38709471]
[1762075880271,0.4310342,111090.0,111080.0,0.39509471]
[1762075881083,0.4330342,111090.0,111080.0,0.41009471]
[1762075881475,0.4330342,111090.0,111080.0,0.4102719]
[1762075883464,0.4330342,111090.0,111080.0,0.02439543]
[1762075883684,3.51584878,111090.0,111080.0,0.02439543]
[1762075884519,3.51284878,111090.0,111080.0,0.00139543]
[1762075884739,3.51484878,111090.0,111080.0,0.00939543]
[1762075884950,3.85584878,111090.0,111080.0,0.01339543]
[1762075885158,4.39409295,111090.0,111080.0,0.00539543]
[1762075885367,4.00821648,111090.0,111080.0,0.00539543]
[1762075885572,4.01021648,111090.0,111080.0,0.01339543]
[1762075885969,4.00921648,111090.0,111080.0,0.00939543]
[1762075886237,4.0937177,111090.0,111080.0,0.01339543]
[1762075886449,4.48059417,111090.0,111080.0,0.01339543]
[1762075887418,4.39409295,111090.0,111080.0,0.00539543]
[1762075887616,4.40409294,111090.0,111080.0,0.00339543]
[1762075888022,4.40509294,111090.0,111080.0,0.00239543]
[1762075888228,4.40409294,111090.0,111080.0,0.00239543]
[1762075888913,4.40509294,111090.0,111080.0,0.00639543]
[1762075889060,4.49491195,111090.0,111080.0,0.00639543]
[1762075889886,4.52198398,111090.0,111080.0,0.00639543]
[1762075891097,4.93570292,111090.0,111080.0,0.00639543]
[1762075891304,5.17980292,111090.0,111080.0,0.00639543]
[1762075891510,3.95310915,111080.0,111070.0,0.0004]
[1762075891711,4.01314915,111080.0,111070.0,0.00053052]
[1762075891890,4.01314915,111080.0,111070.0,0.00074869]
[1762075893007,4.01675925,111080.0,111070.0,0.00074869]
[1762075893739,4.01775925,111080.0,111070.0,0.00274869]
[1762075894016,4.03188601,111080.0,111070.0,0.00274869]
[1762075894162,4.01775925,111080.0,111070.0,0.00274869]
[1762075894773,4.01875925,111080.0,111070.0,0.00574869]
[1762075895365,4.10857826,111080.0,111070.0,0.00574869]
[1762075896117,4.14642072,111080.0,111070.0,0.00574869]
[1762075896342,4.11857825,111080.0,111070.0,0.00574869]
[1762075897112,4.14113297,111080.0,111070.0,0.00574869]
[1762075897324,4.13113298,111080.0,111070.0,0.00574869]
[1762075897736,4.14113297,111080.0,111070.0,0.00574869]
[1762075899540,4.15526045,111080.0,111070.0,0.00574869]
[1762075899744,4.25131396,111080.0,111070.0,0.00574869]
[1762075900350,3.86543749,111080.0,111070.0,0.00574869]
[1762075900634,4.25131396,111080.0,111070.0,0.00574869]
[1762075902611,3.86543749,111080.0,111070.0,0.00574869]
[1762075902801,4.25131396,111080.0,111070.0,0.00574869]
[1762075903003,4.34113492,111080.0,111070.0,0.00574869]
[1762075904409,3.52106662,111070.0,111060.0,0.0004]
[1762075904612,3.87340611,111070.0,111060.0,0.00048687]
[1762075905029,3.87340611,111070.0,111060.0,0.00070507]
[1762075905736,3.90248225,111070.0,111060.0,0.00670507]
[1762075905941,3.90348225,111070.0,111060.0,0.01070507]
[1762075908349,3.70348225,111070.0,111060.0,0.01070507]
[1762075908549,3.67106414,111070.0,111060.0,0.01070507]
[1762075908764,3.07192138,111070.0,111060.0,1.01508084]
[1762075908968,0.04768282,111070.0,111060.0,1.01508084]
[1762075909173,0.01142979,111070.0,111060.0,1.0421487]
[1762075911113,0.02663979,111070.0,111060.0,0.27039576]
[1762075911349,0.20670641,111070.0,111060.0,0.65627223]
[1762075911565,0.04603064,111070.0,111060.0,0.65627223]
[1762075911775,0.02663979,111070.0,111060.0,0.65627223]
[1762075913537,0.02663979,111070.0,111060.0,0.60373223]
[1762075913538,0.24249641,111070.0,111060.0,0.60373223]
[1762075913757,0.26188726,111070.0,111060.0,0.03777293]
[1762075913996,0.26188726,111070.0,111060.0,0.4236494]
[1762075915049,0.26188726,111070.0,111060.0,0.60373223]
[1762075915669,0.23805726,111070.0,111060.0,0.61934223]
[1762075916022,0.03082064,111070.0,111060.0,0.63176223]
[1762075916340,0.01142979,111070.0,111060.0,0.65627223]
[1762075916565,0.02663979,111070.0,111060.0,0.65627223]
[1762075916741,0.03859979,111070.0,111060.0,0.63176223]
[1762075917556,0.21866641,111070.0,111060.0,0.63176223]
[1762075917758,0.23805726,111070.0,111060.0,0.63176223]
[1762075918239,0.23805726,111070.0,111060.0,0.4516794]
[1762075918379,0.26214726,111070.0,111060.0,0.4236494]
[1762075920139,0.24275641,111070.0,111060.0,0.4236494]
[1762075921104,0.24275641,111070.0,111060.0,0.03777293]
[1762075921860,0.24275641,111070.0,111060.0,0.4236494]
[1762075923634,0.58275641,111070.0,111060.0,0.4236494]
[1762075923998,0.58275641,111070.0,111060.0,0.03777293]
[1762075926413,0.58275641,111070.0,111060.0,0.21785576]
[1762075926654,0.003,111070.0,111060.0,0.73624813]
[1762075926863,0.003,111070.0,111060.0,1.1221246]
[1762075927692,0.18306662,111070.0,111060.0,0.25956576]
[1762075927907,0.003,111070.0,111060.0,0.64544223]
[1762075928992,0.18306662,111070.0,111060.0,0.64544223]
[1762075929226,0.003,111070.0,111060.0,0.64544223]
[1762075929662,0.18306662,111070.0,111060.0,0.25956576]
[1762075929874,0.003,111070.0,111060.0,0.64544223]
[1762075930912,0.18306662,111070.0,111060.0,0.64544223]
[1762075932066,0.18306662,111070.0,111060.0,0.4653594]
[1762075932285,0.18306662,111070.0,111060.0,0.64544223]
[1762075932489,0.003,111070.0,111060.0,0.64544223]
[1762075933564,0.18306662,111070.0,111060.0,0.64544223]
[1762075933770,0.003,111070.0,111060.0,0.64544223]
[1762075935437,0.18306662,111070.0,111060.0,0.64544223]
[1762075936411,0.19848662,111070.0,111060.0,0.4270494]
[1762075936618,0.23430662,111070.0,111060.0,0.03777293]
[1762075938679,0.26219844,111070.0,111060.0,0.03777293]
[1762075939119,0.60219844,111070.0,111060.0,0.03777293]
[1762075939345,0.60219844,111070.0,111060.0,0.01070507]
[1762075940566,0.61632479,111070.0,111060.0,0.01070507]
[1762075943407,0.61632479,111070.0,111060.0,0.39673968]
[1762075945495,0.61632479,111070.0,111060.0,0.01070507]
[1762075945739,0.61732479,111070.0,111060.0,0.01070507]
[1762075945981,4.14625263,111070.0,111060.0,0.01070507]
[1762075946165,4.17049119,111070.0,111060.0,0.01070507]
[1762075946418,4.08067218,111070.0,111060.0,0.01070507]
[1762075947102,4.07867218,111070.0,111060.0,0.00470507]
[1762075947345,4.07767218,111070.0,111060.0,0.00070507]
[1762075947556,4.08467218,111070.0,111060.0,0.00270507]
[1762075947772,4.17449119,111070.0,111060.0,0.00270507]
[1762075948193,4.18549119,111070.0,111060.0,0.00470507]
[1762075949115,4.095676,111070.0,111060.0,0.00470507]
[1762075950358,3.70964139,111070.0,111060.0,0.00470507]
[1762075950566,4.095676,111070.0,111060.0,0.00470507]
[1762075950956,4.08154965,111070.0,111060.0,0.00470507]
[1762075952468,4.0816291,111070.0,111060.0,0.00470507]
[1762075952675,4.17144811,111070.0,111060.0,0.00470507]
[1762075953308,4.0816291,111070.0,111060.0,0.00470507]
[1762075953723,3.70972179,111070.0,111060.0,0.00470507]
[1762075955370,4.0957564,111070.0,111060.0,0.00470507]
[1762075956326,4.07144081,111070.0,111060.0,0.00470507]
[1762075957641,4.0957564,111070.0,111060.0,0.00470507]
[1762075957803,4.38557541,111070.0,111060.0,0.00470507]
[1762075957967,4.77161002,111070.0,111060.0,0.00470507]
[1762075958177,4.38557541,111070.0,111060.0,0.00470507]
[1762075958380,4.03190145,111070.0,111060.0,0.00470507]
[1762075958563,4.81397066,111070.0,111060.0,0.00470507]
[1762075958976,4.78965507,111070.0,111060.0,0.00470507]
[1762075959184,4.04189227,111070.0,111060.0,0.00470507]
[1762075959385,4.82396148,111070.0,111060.0,0.00470507]
[1762075960410,4.49315205,111060.0,111050.0,0.0004]
[1762075960615,4.58846864,111060.0,111050.0,0.00053061]
[1762075960795,4.59746864,111060.0,111050.0,0.00053061]
[1762075961006,4.59746864,111060.0,111050.0,0.00074884]
[1762075961222,3.95140071,111060.0,111050.0,0.00074884]
[1762075961438,4.65795629,111060.0,111050.0,0.00074884]
[1762075961647,4.66695629,111060.0,111050.0,0.00274884]
[1762075961861,4.67395629,111060.0,111050.0,0.00374884]
[1762075962930,4.67395629,111060.0,111040.0,0.0004]
[1762075962931,0.21628133,111050.0,111040.0,0.0004]
[1762075963147,4.221754,111050.0,111040.0,0.0004]
[1762075963358,3.83571939,111050.0,111040.0,0.0004]
[1762075963570,4.221754,111050.0,111040.0,0.0004]
[1762075963779,4.221754,111050.0,111040.0,0.00061826]
[1762075963983,4.31018702,111050.0,111040.0,0.00061826]
[1762075964193,4.31718702,111050.0,111040.0,0.00261826]
[1762075964393,4.31717381,111050.0,111040.0,0.00261826]
[1762075964603,4.32117381,111050.0,111040.0,0.00261826]
[1762075965046,4.23274079,111050.0,111040.0,0.00261826]
[1762075965524,4.6187754,111050.0,111040.0,0.00261826]
[1762075965953,3.95731377,111030.0,111020.0,0.0004]
[1762075966176,3.98518377,111030.0,111020.0,0.0004]
[1762075966399,4.00785377,111030.0,111020.0,0.0004]
[1762075966638,4.40311379,111030.0,111020.0,0.0004]
[1762075966872,3.81707918,111030.0,111020.0,0.0004]
[1762075967084,3.81907918,111030.0,111020.0,0.0024]
[1762075967293,4.40511379,111030.0,111020.0,0.0024]
[1762075967509,4.41611379,111030.0,111020.0,0.0024]
[1762075968013,4.41411379,111030.0,111020.0,0.0004]
[1762075968235,4.41211379,111030.0,111020.0,0.0004]
[1762075968463,4.42611379,111030.0,111020.0,0.0034]
[1762075969546,4.82214839,111030.0,111020.0,0.0034]
[1762075970170,4.43611378,111030.0,111020.0,0.0034]
[1762075970380,4.52593279,111030.0,111020.0,0.0034]
[1762075971748,4.52593279,111030.0,111020.0,0.00383662]
[1762075972588,4.13989818,111030.0,111020.0,0.00383662]
[1762075972812,4.52593279,111030.0,111020.0,0.00383662]
[1762075974486,4.43611378,111030.0,111020.0,0.00383662]
[1762075974893,4.05007917,111030.0,111020.0,0.00383662]
[1762075975103,4.43611378,111030.0,111020.0,0.00383662]
[1762075976146,4.84822364,111030.0,111020.0,0.00383662]
[1762075976681,4.84157609,111030.0,111020.0,0.00383662]
[1762075976885,4.9313951,111030.0,111020.0,0.00383662]
[1762075977094,4.54536049,111030.0,111020.0,0.00383662]
[1762075977514,4.43611378,111030.0,111020.0,0.00383662]
[1762075980457,4.94512237,111030.0,111020.0,0.00383662]
[1762075980671,4.92963014,111030.0,111020.0,0.00383662]
[1762075981299,5.02460603,111030.0,111020.0,1e-08]
[1762075981505,5.12442503,111030.0,111020.0,1e-08]
[1762075981716,5.13856032,111030.0,111020.0,1e-08]
[1762075982130,5.12956032,111030.0,111020.0,1e-08]
[1762075982338,5.12956032,111030.0,111020.0,0.00300001]
[1762075982540,5.14056032,111030.0,111020.0,0.00300001]
[1762075983031,5.14856032,111030.0,111020.0,0.00300001]
[1762075983246,1.74142382,111020.0,111010.0,1e-08]
[1762075983453,4.959785,111020.0,111010.0,1e-08]
[1762075983658,4.22379102,111020.0,111010.0,1e-08]
[1762075984073,4.29288207,111020.0,111010.0,1e-08]
[1762075984303,4.32521866,111020.0,111010.0,1e-08]
[1762075984514,4.33521866,111020.0,111010.0,1e-08]
[1762075984715,4.30914341,111020.0,111010.0,0.00400001]
[1762075984921,4.31914341,111020.0,111010.0,0.00400001]
[1762075985759,4.31914341,111020.0,111010.0,1e-08]
[1762075985960,3.97736244,111000.0,110990.0,0.0004]
[1762075986165,4.85522519,111000.0,110990.0,0.00088385]
[1762075986388,4.9695942,111000.0,110990.0,0.00088385]
[1762075987341,4.20452498,111000.0,110990.0,0.00088385]
[1762075987596,4.9765942,111000.0,110990.0,0.00088385]
[1762075988079,4.9745942,111000.0,110990.0,0.00488385]
[1762075988830,4.19552498,111000.0,110990.0,0.00088385]
[1762075989035,4.9605942,111000.0,110990.0,0.00488385]
[1762075989244,4.9905942,111000.0,110990.0,0.00488385]
[1762075990531,4.98059421,111000.0,110990.0,0.00488385]
[1762075990768,5.39976667,111000.0,110990.0,0.00488385]
[1762075990983,4.3394479,110990.0,110980.0,0.0004]
[1762075991194,4.50108147,110990.0,110980.0,0.0004]
[1762075991610,4.51790067,110990.0,110980.0,0.0004]
[1762075991826,4.73946414,110980.0,110970.0,0.0004]
[1762075992032,4.81149989,110980.0,110970.0,0.00054479]
[1762075992247,4.9013189,110980.0,110970.0,0.00054479]
[1762075992457,4.81149989,110980.0,110970.0,0.00054479]
[1762075993549,4.04743067,110980.0,110970.0,0.00054479]
[1762075993760,4.84364018,110980.0,110970.0,0.00354479]
[1762075995336,4.84364018,110980.0,110960.0,0.0004]
[1762075995337,4.33948038,110970.0,110960.0,0.0004]
[1762075995546,4.40109038,110970.0,110960.0,0.0004]
[1762075995784,4.49090939,110970.0,110960.0,0.0004]
[1762075996017,3.62902116,110970.0,110960.0,0.0004]
[1762075996269,4.01505577,110970.0,110960.0,0.0004]
[1762075996502,4.02205577,110970.0,110960.0,0.0004]
[1762075997424,4.41209038,110970.0,110960.0,0.0054]
[1762075997653,4.50190939,110970.0,110960.0,0.0054]
[1762075997883,4.52127456,110970.0,110960.0,0.0054]
[1762075998388,4.44145554,110970.0,110960.0,0.0054]
[1762075998856,4.43145555,110970.0,110960.0,0.0054]
[1762075999322,4.44145554,110970.0,110960.0,0.0054]
[1762076000214,3.66938632,110970.0,110960.0,0.0054]
[1762076000429,4.44145554,110970.0,110960.0,0.0054]
[1762076001065,4.53127455,110970.0,110960.0,0.0054]